bitfinex/quotes_BTCUSD_20240915
["timestamp","ask_amount","ask_price","bid_price","bid_amount"]
[1726435880177,0.48023837,59724.0,59723.0,0.868839]
[1726435880403,0.48223837,59724.0,59723.0,1.203718]
[1726435881068,0.48223837,59724.0,59723.0,1.2277052]
[1726435881271,0.48223837,59724.0,59723.0,1.73325576]
[1726435881688,0.47231,59724.0,59723.0,1.73325576]
[1726435882100,0.48219076,59724.0,59723.0,1.73325576]
[1726435882521,0.48019076,59724.0,59723.0,1.73325576]
[1726435882728,0.48019076,59724.0,59723.0,1.73425576]
[1726435883173,0.48019076,59724.0,59723.0,1.83925576]
[1726435884956,0.48019076,59724.0,59723.0,2.01049597]
[1726435885463,0.47231,59724.0,59723.0,2.01049597]
[1726435885929,0.47231,59724.0,59723.0,2.18173178]
[1726435886144,0.26941,59724.0,59723.0,2.53391078]
[1726435886581,0.001644,59739.0,59734.0,1.171859]
[1726435886798,0.001644,59739.0,59734.0,1.201859]
[1726435887964,0.001644,59739.0,59734.0,1.202859]
[1726435888843,0.001821,59735.0,59734.0,1.202859]
[1726435890605,0.001821,59735.0,59734.0,1.204859]
[1726435894342,0.001821,59735.0,59734.0,1.202859]
[1726435895486,0.001821,59735.0,59734.0,1.204859]
[1726435897572,0.001821,59735.0,59734.0,1.202859]
[1726435906714,0.001821,59735.0,59734.0,0.868042]
[1726435910591,0.001821,59735.0,59734.0,0.533225]
[1726435910824,0.001821,59735.0,59734.0,0.503225]
[1726435911278,0.001821,59735.0,59734.0,0.168408]
[1726435914017,0.504041,59735.0,59734.0,0.168408]
[1726435914244,0.504041,59735.0,59734.0,0.001]
[1726435914467,0.51210693,59735.0,59734.0,0.001]
[1726435914895,0.69170693,59735.0,59734.0,0.001]
[1726435915809,0.93180693,59735.0,59734.0,0.001]
[1726435916025,0.93180693,59735.0,59734.0,0.031]
[1726435926684,0.93180693,59735.0,59734.0,0.033]
[1726435927028,0.93180693,59735.0,59734.0,0.031]
[1726435928574,0.93180693,59735.0,59734.0,0.198408]
[1726435929896,0.93180693,59735.0,59734.0,0.031]
[1726435930139,0.93180693,59735.0,59734.0,0.198408]
[1726435930367,0.93180693,59735.0,59734.0,0.031]
[1726435931277,0.93180693,59735.0,59734.0,0.198408]
[1726435933532,0.93180693,59735.0,59734.0,0.031]
[1726435933790,0.93180693,59735.0,59734.0,0.198408]
[1726435935833,0.93180693,59735.0,59734.0,0.031]
[1726435936280,0.93180693,59735.0,59734.0,0.198408]
[1726435937796,0.93180693,59735.0,59734.0,0.200408]
[1726435940558,0.93180693,59735.0,59734.0,0.198408]
[1726435945091,0.93180693,59735.0,59734.0,0.031]
[1726435945310,1.09921293,59735.0,59734.0,0.031]
[1726435945542,0.93180693,59735.0,59734.0,0.031]
[1726435946885,0.93180693,59735.0,59734.0,0.001]
[1726435947336,0.93180693,59735.0,59734.0,0.168408]
[1726435947559,0.93180693,59735.0,59734.0,0.001]
[1726435948436,0.93180693,59735.0,59734.0,0.031]
[1726435951134,0.93180693,59735.0,59734.0,0.533225]
[1726435951346,0.69170693,59735.0,59734.0,0.533225]
[1726435951573,0.51210693,59735.0,59734.0,0.198408]
[1726435952907,0.51210693,59735.0,59734.0,0.533225]
[1726435954916,0.504041,59735.0,59734.0,0.533225]
[1726435955171,0.51212616,59735.0,59734.0,0.533225]
[1726435955379,0.51212616,59735.0,59734.0,0.868042]
[1726435955594,0.51212616,59735.0,59734.0,1.202859]
[1726435955835,0.51212616,59735.0,59734.0,1.204859]
[1726435956075,0.51212616,59735.0,59734.0,0.870042]
[1726435956324,0.504041,59735.0,59734.0,0.870042]
[1726435956757,0.51210962,59735.0,59734.0,0.870042]
[1726435956968,0.51210962,59735.0,59734.0,0.868042]
[1726435958483,0.51210962,59735.0,59734.0,0.870042]
[1726435959427,0.51210962,59735.0,59734.0,1.204859]
[1726435959635,0.51210962,59735.0,59734.0,0.870042]
[1726435960057,0.51210962,59735.0,59734.0,1.204859]
[1726435964023,0.51210962,59735.0,59734.0,1.24803539]
[1726435964256,0.51210962,59735.0,59734.0,1.204859]
[1726435964459,0.51210962,59735.0,59734.0,0.870042]
[1726435964847,0.51210962,59735.0,59734.0,1.204859]
[1726435971612,0.51210962,59735.0,59734.0,1.202859]
[1726435975414,0.51210962,59735.0,59734.0,0.868042]
[1726435975901,0.3975,59734.0,59724.0,0.05194196]
[1726435976131,0.3975,59734.0,59728.0,0.167424]
[1726435976132,0.669631,59733.0,59728.0,0.167424]
[1726435976364,0.167415,59732.0,59728.0,0.167424]
[1726435976603,0.167422,59730.0,59724.0,0.001642]
[1726435976840,0.50222,59731.0,59724.0,0.001642]
[1726435976841,0.67162,59729.0,59726.0,0.167429]
[1726435977095,0.67464573,59729.0,59724.0,0.001642]
[1726435977359,0.2295,59728.0,59724.0,0.003642]
[1726435977580,0.2295,59728.0,59718.0,0.334902]
[1726435977581,0.68402,59727.0,59714.0,0.334929]
[1726435977832,0.68402,59727.0,59710.0,0.33495]
[1726435977833,0.4113,59725.0,59710.0,0.33495]
[1726435978085,0.334933,59714.0,59705.0,0.2665]
[1726435978308,0.334933,59714.0,59701.0,0.334999]
[1726435978309,0.334948,59711.0,59702.0,0.167496]
[1726435978531,0.2295,59708.0,59703.0,0.167493]
[1726435978760,0.2295,59708.0,59702.0,0.334997]
[1726435978761,0.50222,59707.0,59702.0,0.334997]
[1726435978992,0.50222,59707.0,59703.0,0.33499]
[1726435979223,0.50222,59707.0,59704.0,0.334984]
[1726435979443,0.50222,59707.0,59705.0,0.168488]
[1726435979906,0.50222,59707.0,59706.0,0.167487]
[1726435980581,0.50822,59707.0,59706.0,0.167487]
[1726435981658,0.51374024,59707.0,59706.0,0.167487]
[1726435982204,0.50774024,59707.0,59706.0,0.167487]
[1726435982689,0.51174024,59707.0,59706.0,0.167487]
[1726435982916,0.51274024,59707.0,59706.0,0.168487]
[1726435983148,0.51274024,59707.0,59706.0,0.169487]
[1726435983376,0.51774024,59707.0,59706.0,0.504461]
[1726435983584,0.51774024,59707.0,59706.0,0.503461]
[1726435983802,0.51774024,59707.0,59706.0,0.168487]
[1726435984500,0.51774024,59707.0,59706.0,0.503461]
[1726435984945,0.52174024,59707.0,59706.0,0.168487]
[1726435985150,0.52174024,59707.0,59706.0,0.503461]
[1726435987096,0.52174024,59707.0,59706.0,0.001]
[1726435988041,1.35916224,59707.0,59706.0,0.001]
[1726435988280,1.35916224,59707.0,59705.0,0.000822]
[1726435988281,0.837435,59706.0,59705.0,0.000822]
[1726435988517,0.167512,59697.0,59694.0,0.2665]
[1726435988736,0.50222,59696.0,59691.0,0.000822]
[1726435988942,0.2353,59695.0,59691.0,0.000822]
[1726435989171,0.837263,59694.0,59691.0,0.000822]
[1726435989433,0.5077346,59694.0,59691.0,0.000822]
[1726435989848,0.181,59693.0,59691.0,0.000822]
[1726435990054,0.181,59693.0,59691.0,0.001822]
[1726435990280,0.669746,59692.0,59691.0,0.001822]
[1726435990517,0.5077346,59692.0,59691.0,0.000822]
[1726435990746,0.6752606,59692.0,59691.0,0.000822]
[1726435991636,0.5077346,59692.0,59677.0,0.335133]
[1726435991891,0.16755,59684.0,59678.0,0.335131]
[1726435992124,0.335085,59687.0,59679.0,0.167562]
[1726435992125,0.669772,59683.0,59679.0,0.167562]
[1726435992355,0.50768881,59683.0,59677.0,0.167567]
[1726435992812,0.33511,59682.0,59676.0,0.0039469]
[1726435993027,0.73642,59681.0,59676.0,0.1715169]
[1726435993257,0.33512,59680.0,59676.0,0.0039469]
[1726435993492,0.669784,59679.0,59676.0,0.0039469]
[1726435993673,0.67235189,59679.0,59676.0,0.0039469]
[1726435994613,0.50478789,59679.0,59678.0,0.502696]
[1726435994856,0.50478789,59679.0,59678.0,0.837827]
[1726435995326,0.51078789,59679.0,59678.0,0.837827]
[1726435995773,0.51578789,59679.0,59678.0,0.837827]
[1726435995993,0.52130813,59679.0,59678.0,0.837827]
[1726435996437,0.52230813,59679.0,59678.0,0.837827]
[1726435996656,0.51630813,59679.0,59678.0,0.837827]
[1726435997107,0.51830813,59679.0,59678.0,0.837827]
[1726435997734,0.51830813,59679.0,59678.0,0.502696]
[1726436000783,0.51830813,59679.0,59678.0,0.167565]
[1726436000993,0.51830813,59679.0,59678.0,0.502696]
[1726436003280,0.51830813,59679.0,59678.0,0.837827]
[1726436003758,0.51830813,59679.0,59678.0,0.167565]
[1726436003938,0.51022,59679.0,59678.0,0.167565]
[1726436004200,0.51822378,59679.0,59678.0,0.502696]
[1726436005562,0.51822378,59679.0,59678.0,0.503519]
[1726436009125,0.51022,59679.0,59678.0,0.503519]
[1726436013939,0.50822,59679.0,59678.0,0.505519]
[1726436014178,0.50422,59679.0,59678.0,0.505519]
[1726436014420,0.50422,59679.0,59678.0,0.503519]
[1726436014656,0.50422,59679.0,59678.0,0.504519]
[1726436014942,0.50422,59679.0,59678.0,0.503519]
[1726436015174,0.50422,59679.0,59678.0,0.504519]
[1726436015414,0.50422,59679.0,59678.0,0.83965]
[1726436015887,0.50422,59679.0,59678.0,1.174781]
[1726436016142,0.50222,59679.0,59678.0,1.174781]
[1726436016384,0.50322,59679.0,59678.0,1.174781]
[1726436017810,0.50322,59679.0,59678.0,1.37124768]
[1726436018087,0.50322,59679.0,59678.0,1.63552993]
[1726436018336,0.001646,59691.0,59678.0,1.63552993]
[1726436018337,0.001646,59691.0,59690.0,0.83766]
[1726436018570,0.001646,59691.0,59690.0,1.507788]
[1726436018811,0.001646,59691.0,59690.0,2.10638476]
[1726436019053,0.001646,59691.0,59690.0,2.30062057]
[1726436019789,0.001646,59691.0,59690.0,2.33262057]
[1726436020020,0.001646,59691.0,59690.0,2.5268526]
[1726436020275,0.002646,59691.0,59690.0,2.5328526]
[1726436020731,0.002646,59691.0,59690.0,2.5308526]
[1726436020955,0.002646,59691.0,59690.0,2.54157329]
[1726436021178,0.2259,59712.0,59711.0,1.172311]
[1726436022054,0.2259,59712.0,59708.0,0.19423203]
[1726436022055,0.424,59722.0,59721.0,0.167445]
[1726436022280,0.424,59722.0,59721.0,0.502335]
[1726436022281,0.2374,59722.0,59721.0,0.502335]
[1726436022523,0.2374,59722.0,59721.0,0.837225]
[1726436023888,0.2444,59722.0,59721.0,0.838225]
[1726436024120,0.2444,59722.0,59721.0,0.840225]
[1726436024365,0.2374,59722.0,59721.0,0.839225]
[1726436024585,0.2374,59722.0,59721.0,0.837225]
[1726436025036,0.2434,59722.0,59721.0,0.838225]
[1726436025222,0.2374,59722.0,59721.0,0.839225]
[1726436025417,0.2374,59722.0,59721.0,0.842225]
[1726436026361,0.2374,59722.0,59721.0,0.505335]
[1726436026592,0.2374,59722.0,59721.0,0.170445]
[1726436030600,0.239046,59722.0,59721.0,0.170445]
[1726436031077,0.741376,59722.0,59721.0,0.170445]
[1726436031927,0.741376,59722.0,59721.0,0.003]
[1726436032175,1.422902,59722.0,59721.0,0.003]
[1726436032406,1.422902,59722.0,59706.0,0.2665]
[1726436032407,0.334902,59719.0,59706.0,0.2665]
[1726436032670,0.16746,59716.0,59712.0,0.167468]
[1726436033097,0.16746,59716.0,59705.0,0.002]
[1726436033098,0.33493,59714.0,59699.0,0.002]
[1726436033312,0.167476,59710.0,59699.0,0.002]
[1726436033536,0.167476,59710.0,59706.0,0.167486]
[1726436033971,0.167476,59710.0,59707.0,0.167484]
[1726436035334,0.83727,59713.0,59707.0,0.167484]
[1726436035556,0.167473,59711.0,59707.0,0.167484]
[1726436035765,0.005,59710.0,59707.0,0.167484]
[1726436035980,0.172478,59710.0,59706.0,0.167487]
[1726436036606,0.172478,59710.0,59706.0,0.168487]
[1726436037024,0.172478,59710.0,59706.0,0.167487]
[1726436037449,0.179478,59710.0,59706.0,0.168487]
[1726436037658,0.174478,59710.0,59706.0,0.168487]
[1726436037909,0.007,59710.0,59707.0,0.167484]
[1726436038575,0.007,59710.0,59709.0,0.167478]
[1726436038821,0.012,59710.0,59707.0,0.167482]
[1726436039022,0.007,59710.0,59707.0,0.167482]
[1726436039322,0.012,59710.0,59707.0,0.167482]
[1726436039537,0.167475,59711.0,59707.0,0.167482]
[1726436039755,0.007,59710.0,59707.0,0.168482]
[1726436040927,0.007,59710.0,59708.0,0.167481]
[1726436041163,0.005,59710.0,59708.0,0.167481]
[1726436041384,0.175475,59711.0,59708.0,0.167481]
[1726436041611,0.005,59710.0,59708.0,0.167481]
[1726436042273,0.01,59710.0,59708.0,0.167481]
[1726436042492,0.175475,59711.0,59708.0,0.167481]
[1726436042732,0.006,59711.0,59708.0,0.167481]
[1726436042954,0.007,59710.0,59708.0,0.001]
[1726436043398,0.173473,59711.0,59707.0,0.167483]
[1726436043876,0.181473,59711.0,59708.0,0.001]
[1726436044070,0.175473,59711.0,59708.0,0.168481]
[1726436044356,0.005,59710.0,59708.0,0.167481]
[1726436044565,0.007,59710.0,59708.0,0.168481]
[1726436045455,0.007,59710.0,59708.0,0.001]
[1726436045664,0.167473,59711.0,59707.0,0.167484]
[1726436045886,0.50233,59713.0,59711.0,0.167471]
[1726436046074,0.50233,59713.0,59710.0,0.334952]
[1726436046075,0.014,59711.0,59710.0,0.167476]
[1726436046541,0.006,59711.0,59710.0,0.167476]
[1726436046990,0.014,59711.0,59710.0,0.167476]
[1726436047508,0.669798,59713.0,59710.0,0.167476]
[1726436047756,0.008,59711.0,59710.0,0.168476]
[1726436048507,0.008,59711.0,59710.0,0.001]
[1726436048508,0.014,59711.0,59710.0,0.001]
[1726436049440,0.006,59711.0,59705.0,0.334979]
[1726436049687,0.006,59711.0,59710.0,0.001]
[1726436050176,0.006,59711.0,59709.0,0.167478]
[1726436050423,0.006,59711.0,59710.0,0.001]
[1726436050673,0.014,59711.0,59710.0,0.001]
[1726436051169,0.334945,59712.0,59707.0,0.167483]
[1726436051409,0.167477,59710.0,59707.0,0.167483]
[1726436051617,0.50233,59711.0,59705.0,0.334979]
[1726436051618,0.675803,59711.0,59708.0,0.16748]
[1726436052065,0.681803,59711.0,59707.0,0.167484]
[1726436052276,0.669803,59711.0,59707.0,0.167484]
[1726436052486,0.677803,59711.0,59709.0,0.001]
[1726436052708,0.167476,59710.0,59709.0,0.001]
[1726436053176,0.167476,59710.0,59707.0,0.167484]
[1726436053425,0.677804,59711.0,59707.0,0.168484]
[1726436053634,0.51033,59711.0,59707.0,0.168484]
[1726436053836,0.005,59710.0,59707.0,0.167484]
[1726436054054,0.005,59710.0,59709.0,0.001]
[1726436054265,0.012,59710.0,59709.0,0.001]
[1726436054499,0.007,59710.0,59709.0,0.001]
[1726436055169,0.174476,59710.0,59709.0,0.001]
[1726436055598,0.179476,59710.0,59709.0,0.001]
[1726436055812,0.179476,59710.0,59708.0,0.000822]
[1726436056040,0.172476,59710.0,59708.0,0.000822]
[1726436056953,0.167476,59710.0,59708.0,0.000822]
[1726436057180,0.172476,59710.0,59708.0,0.000822]
[1726436057399,0.005,59710.0,59708.0,0.000822]
[1726436058312,0.005,59710.0,59708.0,0.168303]
[1726436058523,0.012,59710.0,59708.0,0.169303]
[1726436061486,0.012,59710.0,59708.0,0.001822]
[1726436062170,0.4113,59709.0,59708.0,0.001822]
[1726436063189,0.4113,59709.0,59708.0,0.000822]
[1726436063543,0.4173,59709.0,59708.0,0.000822]
[1726436063746,0.4213,59709.0,59708.0,0.000822]
[1726436064388,0.588778,59709.0,59708.0,0.000822]
[1726436072587,0.92363,59709.0,59708.0,0.000822]
[1726436072814,0.92363,59709.0,59708.0,0.168303]
[1726436073042,0.92363,59709.0,59708.0,0.000822]
[1726436076524,0.92363,59709.0,59708.0,0.168303]
[1726436076975,0.92363,59709.0,59708.0,0.000822]
[1726436082751,0.51233,59709.0,59708.0,0.838229]
[1726436082976,0.51233,59709.0,59708.0,1.30268686]
[1726436083682,0.50633,59709.0,59708.0,1.30268686]
[1726436084147,0.50833,59709.0,59708.0,1.30268686]
[1726436084662,0.50833,59709.0,59708.0,2.06400806]
[1726436085129,0.50833,59709.0,59708.0,2.11826322]
[1726436085354,0.50233,59709.0,59708.0,2.37272826]
[1726436085600,0.50233,59709.0,59708.0,2.39984359]
[1726436085845,0.50233,59709.0,59708.0,2.39585503]
[1726436086085,0.50333,59709.0,59708.0,2.22761482]
[1726436086304,0.50333,59709.0,59708.0,2.20245456]
[1726436086744,0.50433,59709.0,59708.0,2.70357782]
[1726436086976,0.50433,59709.0,59708.0,2.87481803]
[1726436087200,0.50433,59709.0,59708.0,2.87677499]
[1726436087421,0.50433,59709.0,59708.0,2.8767359]
[1726436088036,0.50433,59709.0,59708.0,2.77629628]
[1726436088360,0.50433,59709.0,59708.0,2.87669491]
[1726436088784,0.50333,59709.0,59708.0,2.86969491]
[1726436089065,0.50333,59709.0,59708.0,2.86569491]
[1726436089529,0.50433,59709.0,59708.0,2.85257213]
[1726436089940,0.50433,59709.0,59708.0,2.77729628]
[1726436090317,0.50433,59709.0,59708.0,2.57297157]
[1726436091111,0.50433,59709.0,59708.0,2.57097157]
[1726436091326,0.50433,59709.0,59708.0,2.54587479]
[1726436091763,0.50433,59709.0,59708.0,2.49571591]
[1726436092469,0.50433,59709.0,59708.0,2.57097157]
[1726436092897,0.50433,59709.0,59708.0,2.84824268]
[1726436093045,0.50433,59709.0,59708.0,2.84824411]
[1726436093264,0.50433,59709.0,59708.0,2.85005107]
[1726436093467,0.50433,59709.0,59708.0,2.57297157]
[1726436093677,0.48269768,59709.0,59708.0,2.84997629]
[1726436094080,0.002,59709.0,59708.0,2.77272063]
[1726436094308,0.002,59709.0,59708.0,2.87293043]
[1726436094548,0.002,59709.0,59708.0,2.7726649]
[1726436094795,0.002,59709.0,59708.0,2.84784379]
[1726436095028,0.002,59709.0,59708.0,2.7726649]
[1726436095255,0.002,59709.0,59708.0,2.7746649]
[1726436095481,0.002,59709.0,59708.0,2.84982548]
[1726436095712,0.002,59709.0,59708.0,2.57287649]
[1726436096170,0.002,59709.0,59708.0,2.49771591]
[1726436096394,0.002,59709.0,59708.0,2.5478139]
[1726436096666,0.002,59709.0,59708.0,2.49771591]
[1726436096900,0.002,59709.0,59708.0,2.8495683]
[1726436097127,0.002,59709.0,59708.0,2.54581411]
[1726436098020,0.002,59709.0,59708.0,2.49571591]
[1726436098243,0.002,59709.0,59708.0,2.54581411]
[1726436098462,0.001644,59721.0,59720.0,1.507032]
[1726436098672,0.001644,59721.0,59720.0,1.63652686]
[1726436099751,0.001644,59721.0,59720.0,1.63752686]
[1726436101596,0.001644,59721.0,59720.0,1.63652686]
[1726436101833,0.001644,59721.0,59720.0,1.64052686]
[1726436102061,0.001644,59721.0,59720.0,1.80257955]
[1726436102429,0.002644,59721.0,59720.0,1.80857955]
[1726436102651,0.002644,59721.0,59720.0,1.80657955]
[1726436103087,0.002644,59721.0,59720.0,1.80457955]
[1726436103298,0.002644,59721.0,59720.0,1.81057955]
[1726436103299,0.003644,59721.0,59720.0,1.81057955]
[1726436103521,0.001644,59721.0,59720.0,1.80057955]
[1726436103743,0.001644,59721.0,59720.0,1.80457955]
[1726436104635,0.001644,59721.0,59720.0,1.90457955]
[1726436104870,0.002644,59721.0,59720.0,1.90557955]
[1726436105326,0.001644,59721.0,59720.0,1.90457955]
[1726436105539,0.002644,59721.0,59720.0,1.90957955]
[1726436105772,0.002644,59721.0,59720.0,1.90357955]
[1726436105996,0.002644,59721.0,59720.0,1.91157955]
[1726436106218,0.001644,59721.0,59720.0,1.90457955]
[1726436106446,0.001644,59721.0,59720.0,1.89681502]
[1726436106688,0.002644,59721.0,59720.0,1.90181502]
[1726436106993,0.003644,59721.0,59720.0,1.91081502]
[1726436107122,0.003644,59721.0,59720.0,2.42975952]
[1726436107363,0.003644,59721.0,59720.0,2.45275952]
[1726436107872,0.002644,59721.0,59720.0,2.44775952]
[1726436108106,0.003644,59721.0,59720.0,2.45275952]
[1726436108342,0.003644,59721.0,59720.0,2.32326466]
[1726436108580,0.003644,59721.0,59720.0,2.44775952]
[1726436108808,0.003644,59721.0,59720.0,2.44375952]
[1726436109032,0.003644,59721.0,59720.0,2.44775952]
[1726436109277,0.004644,59721.0,59720.0,2.45275952]
[1726436109547,0.003644,59721.0,59720.0,2.44375952]
[1726436109778,0.003644,59721.0,59720.0,2.45575952]
[1726436109779,0.004644,59721.0,59720.0,2.45575952]
[1726436110242,0.004644,59721.0,59720.0,2.44575952]
[1726436110454,0.003644,59721.0,59720.0,2.44575952]
[1726436110698,0.004644,59721.0,59720.0,2.45975952]
[1726436111142,0.004644,59721.0,59720.0,2.45775952]
[1726436111567,0.002644,59721.0,59720.0,2.45275952]
[1726436111980,0.002644,59721.0,59720.0,2.44375952]
[1726436112184,0.002644,59721.0,59720.0,2.43875952]
[1726436112429,0.003644,59721.0,59720.0,2.45275952]
[1726436112648,0.004644,59721.0,59720.0,2.45775952]
[1726436112879,0.003644,59721.0,59720.0,2.44575952]
[1726436113131,0.003644,59721.0,59720.0,2.45975952]
[1726436113132,0.004644,59721.0,59720.0,2.45975952]
[1726436113378,0.002644,59721.0,59720.0,2.45475952]
[1726436113620,0.003644,59721.0,59720.0,2.45975952]
[1726436114756,0.002644,59721.0,59720.0,2.45475952]
[1726436115236,0.003644,59721.0,59720.0,2.47920424]
[1726436115664,0.003644,59721.0,59720.0,2.45975952]
[1726436116564,0.003644,59721.0,59720.0,2.4793167]
[1726436116785,0.003644,59721.0,59720.0,2.45775952]
[1726436117036,0.002644,59721.0,59720.0,2.46331212]
[1726436117261,0.002644,59721.0,59720.0,2.44375952]
[1726436117487,0.002644,59721.0,59720.0,2.46331209]
[1726436117926,0.001644,59721.0,59720.0,2.45831209]
[1726436118156,0.002644,59721.0,59720.0,2.46331209]
[1726436118380,0.002644,59721.0,59720.0,2.46531209]
[1726436118631,0.003644,59721.0,59720.0,2.47931209]
[1726436119339,0.001646,59722.0,59720.0,2.47931209]
[1726436119340,0.001646,59722.0,59721.0,1.841895]
[1726436119545,0.001646,59722.0,59721.0,2.32892359]
[1726436119759,0.001646,59722.0,59721.0,2.33092359]
[1726436120182,0.001646,59722.0,59721.0,2.32892359]
[1726436120408,0.001646,59722.0,59721.0,2.33092359]
[1726436120642,0.001646,59722.0,59721.0,2.33086072]
[1726436121072,0.001646,59722.0,59721.0,2.32886072]
[1726436121289,0.001644,59723.0,59722.0,1.841862]
[1726436121509,0.001644,59723.0,59722.0,2.30733802]
[1726436121722,0.001644,59723.0,59722.0,2.30933802]
[1726436122647,0.001644,59723.0,59722.0,2.32881527]
[1726436123061,0.003644,59723.0,59722.0,2.34981527]
[1726436123492,0.003644,59723.0,59722.0,2.34980735]
[1726436123774,0.002644,59723.0,59722.0,2.33580735]
[1726436124226,0.003644,59723.0,59722.0,2.34980735]
[1726436124442,0.003644,59723.0,59722.0,2.32333802]
[1726436124443,0.002644,59723.0,59722.0,2.32333802]
[1726436124650,0.003644,59723.0,59722.0,2.32933802]
[1726436124857,0.003644,59723.0,59722.0,2.32333802]
[1726436125305,0.004644,59723.0,59722.0,2.34881129]
[1726436125534,0.002644,59723.0,59722.0,2.34281129]
[1726436125762,0.002644,59723.0,59722.0,2.34881129]
[1726436125763,0.003644,59723.0,59722.0,2.34881129]
[1726436125983,0.002644,59723.0,59722.0,2.32881129]
[1726436126392,0.004644,59723.0,59722.0,2.39882178]
[1726436126617,0.004644,59723.0,59722.0,2.34881129]
[1726436126851,0.004644,59723.0,59722.0,2.32933802]
[1726436127317,0.003644,59723.0,59722.0,2.31533802]
[1726436127530,0.003644,59723.0,59722.0,2.33480742]
[1726436127736,0.004644,59723.0,59722.0,2.34880742]
[1726436128207,0.004644,59723.0,59722.0,2.32933802]
[1726436128479,0.004644,59723.0,59722.0,2.73340126]
[1726436128707,0.004644,59723.0,59722.0,2.63338027]
[1726436128921,0.004644,59723.0,59722.0,2.73340126]
[1726436130266,0.004644,59723.0,59722.0,2.7604065]
[1726436130476,0.004644,59723.0,59722.0,2.63538027]
[1726436131354,0.004644,59723.0,59722.0,2.45670987]
[1726436131569,0.004644,59723.0,59722.0,2.76110601]
[1726436132200,0.004644,59723.0,59722.0,2.75910601]
[1726436132855,0.004644,59723.0,59722.0,2.63373416]
[1726436134618,0.004644,59723.0,59722.0,2.61424979]
[1726436134831,0.004644,59723.0,59722.0,2.63374371]
[1726436135298,0.004644,59723.0,59722.0,2.66490171]
[1726436135514,0.004644,59723.0,59722.0,2.63374371]
[1726436136156,0.004644,59723.0,59722.0,2.66492678]
[1726436138209,0.004644,59723.0,59722.0,2.61424979]
[1726436138446,0.004644,59723.0,59722.0,2.66491056]
[1726436138662,0.25121841,59737.0,59734.0,1.30135386]
[1726436139108,0.18251269,59735.0,59734.0,1.30135386]
[1726436140012,0.18251269,59735.0,59734.0,1.30735386]
[1726436140420,0.168121,59735.0,59734.0,1.30735386]
[1726436141256,0.169121,59735.0,59734.0,1.31535386]
[1726436146196,0.169121,59735.0,59734.0,1.48659405]
[1726436146449,0.169121,59735.0,59734.0,1.31535386]
[1726436146956,0.169121,59735.0,59734.0,1.185859]
[1726436150165,0.169121,59735.0,59734.0,1.23604606]
[1726436150389,0.169121,59735.0,59734.0,1.23554606]
[1726436150861,0.169121,59735.0,59734.0,1.23754606]
[1726436152188,0.169121,59735.0,59734.0,1.187359]
[1726436153313,0.169121,59735.0,59734.0,1.2626396]
[1726436155402,0.169121,59735.0,59734.0,1.54503223]
[1726436155621,0.169121,59735.0,59734.0,1.2626396]
[1726436156276,0.169121,59735.0,59734.0,1.54507998]
[1726436156730,0.169121,59735.0,59734.0,1.2626396]
[1726436159577,0.169121,59735.0,59734.0,1.54508032]
[1726436159801,0.169121,59735.0,59734.0,1.54308026]
[1726436160018,0.169121,59735.0,59734.0,1.187359]
[1726436160907,0.169121,59735.0,59734.0,1.23765927]
[1726436162065,0.169121,59735.0,59734.0,1.187359]
[1726436163041,0.169121,59735.0,59734.0,1.31485386]
[1726436165711,0.169121,59735.0,59734.0,1.31285386]
[1726436166880,0.169121,59735.0,59734.0,0.97803686]
[1726436168797,0.2097,59732.0,59729.0,0.16742]
[1726436169028,0.334873,59724.0,59719.0,0.36711023]
[1726436169260,0.334844,59730.0,59710.0,0.7769]
[1726436169261,0.2097,59720.0,59714.0,0.167463]
[1726436169484,0.17002948,59719.0,59714.0,0.167463]
[1726436169732,0.17002948,59719.0,59712.0,0.167468]
[1726436169733,0.33748348,59719.0,59712.0,0.167468]
[1726436169973,0.206,59718.0,59711.0,0.46244086]
[1726436170221,0.206,59718.0,59716.0,0.167457]
[1726436170689,0.206,59718.0,59717.0,0.167456]
[1726436170932,0.206,59718.0,59716.0,0.167457]
[1726436171400,0.211,59718.0,59716.0,0.167457]
[1726436172109,0.211,59718.0,59717.0,0.167456]
[1726436172334,0.216,59718.0,59717.0,0.167456]
[1726436172783,0.21653699,59718.0,59717.0,0.167456]
[1726436173005,0.22153699,59718.0,59717.0,0.167456]
[1726436173252,0.21153699,59718.0,59717.0,0.167456]
[1726436173780,0.23014898,59718.0,59717.0,0.167456]
[1726436174010,0.22514898,59718.0,59716.0,0.001]
[1726436174243,0.22414898,59718.0,59717.0,0.167456]
[1726436174475,0.22914898,59718.0,59717.0,0.167456]
[1726436175120,0.22914898,59718.0,59715.0,0.167462]
[1726436175121,0.55680198,59718.0,59715.0,0.167462]
[1726436175364,0.38934898,59718.0,59715.0,0.167462]
[1726436175555,0.41062248,59718.0,59713.0,0.167465]
[1726436175775,0.38434898,59718.0,59713.0,0.167465]
[1726436176248,0.55180298,59718.0,59714.0,0.167464]
[1726436176482,0.501558,59717.0,59714.0,0.167464]
[1726436176943,0.0130847,59716.0,59714.0,0.167464]
[1726436177166,0.501558,59715.0,59714.0,0.167464]
[1726436178773,0.501558,59715.0,59709.0,0.46326886]
[1726436178774,0.501558,59715.0,59710.0,0.334952]
[1726436178994,0.669021,59715.0,59711.0,0.167472]
[1726436179445,0.501558,59715.0,59712.0,0.16747]
[1726436179898,0.00553569,59714.0,59713.0,0.167466]
[1726436180166,0.50709369,59714.0,59713.0,0.167466]
[1726436180368,0.167471,59712.0,59709.0,0.000822]
[1726436180587,0.50709369,59714.0,59710.0,0.167475]
[1726436180588,0.50413548,59711.0,59710.0,0.167475]
[1726436180818,0.50413548,59711.0,59709.0,0.000822]
[1726436180819,0.50707679,59711.0,59709.0,0.1683]
[1726436181269,0.50707679,59711.0,59710.0,0.167476]